Workbook

Sheet MASTER
B2: INPUT
B3: PAVEMENT SECTION PARAMETERS
B4: AC Thickness, D1 (mm) | C4: 75
B5: AC Structural Layer Coefficient, a1 | C5: 0.4
B6: Base Thickness, D2 (mm) | C6: 300
B7: Base Strucural Layer Coefficient, a2 | C7: 0.14
B8: Base Layer Drainage Coefficient, m2 | C8: 1
B9: Subbase Thickness, D3 (mm) | C9: 0
B10: Subbase Structural Layer Coefficient, a3 | C10: 0.1
B11: Subbase Layer Drainage Coefficient, m3 | C11: 1
B12: Subgrade CBR | C12: 1.5
B14: GEOSYNTHETIC PROPERTIES
B15: Geosynthetic Modulus, GSM-2% (kN/m) | C15: 425
B16: Geosynthetic Modulus Ratio, GMR | C16: 0.595
B17: Reduction Factor for Interface Shear | C17: 1
B22: DESIRED REINFORCEMENT BENEFIT
C23: Subgrade | D23: Base | E23: Total
B24: Desired TBR | C24: 1 | D24: 1 | E24: 2
B25: Desired BCR | C25: 0 | D25: 0 | E25: 23
B27: OUTPUT
C28: Subgrade | D28: Base | E28: Total
B29: TBRBCR=0 | C29: 2.538591622 | D29: 1.711072964 | E29: 4.34371549
B30: BCRTBR=1 | C30: 21.51932605 | D30: 13.31555614 | E30: 30.98858847
B31: Desired TBR | C31: 1 | D31: 1 | E31: 2
B32: Remaining BCR | C32: 21.51457984 | D32: 13.3103138 | E32: 17.14910573
B33: Desired BCR | C33: 0 | D33: 0 | E33: 23
B34: Remaining TBR | C34: 2.538808407 | D34: 1.711189393 | E34: 1.504811219
B35: MR-R/U | C35: 1.426159631 | D35: 1.22001958 | E35: 1.788421489

Sheet TBR_BCR_0 (hidden)
A1: AC | B1: Base | C1: CBR | D1: Modulus | E1: Anisotropy | F1: RF_S_Nu | G1: RF_B_Nu | H1: RF_S_G | I1: RF_B_G | J1: RF_Contact | K1: SN | L1: y1 | M1: y1 | N1: y2 | O1: m1 | P1: yo_1 | Q1: SN at TBR=1 | R1: m2 | S1: yo_2 | T1: TBR_S | U1: TBR_S | V1: TBR_S | W1: TBR_S_M | X1: TBR_S_AR | Y1: TBR_S_Nu | Z1: TBR_S_G | AA1: TBR__S_Contact | AB1: TBR__S | AC1: TBR_B | AD1: TBR_B_M | AE1: TBR_B_AR | AF1: TBR_B_Nu | AG1: TBR_B_G | AH1: TBR__B_Contact | AI1: TBR_B | AJ1: TBR_T
A2: Thickness | B2: Thickness | E2: Ratio | F2: 0.83 | G2: 0.96 | H2: 0.92 | I2: 0.99 | J2: 0.76 | M2: used | T2: SN<3.3 | U2: SN>3.3
A4: =+MASTER!C4*(MASTER!C5/0.4) -> 75 | B4: =+MASTER!C6*(MASTER!C7/0.14)*(MASTER!C8/1)+MASTER!C9*(MASTER!C10/0.14)*(MASTER!C11/1) -> 300 | C4: =+MASTER!C12 -> 1.5 | D4: =+MASTER!C15*4400 -> 1870000 | E4: =+MASTER!C16 -> 0.595 | F4: =+IF(A14=TRUE,F2,1) -> 1 | G4: =+IF(A14=TRUE,G2,1) -> 1 | H4: =+IF(A15=TRUE,H2,1) -> 1 | I4: =+IF(A15=TRUE,I2,1) -> 1 | J4: =+MASTER!C17 -> 1 | K4: =0.4*A4/25.4+0.14*B4/25.4 -> 2.834645669 | L4: =(49.8111*LOG(D4)-260.78)/100*(10^(LOG(8)-LOG(C4))-1)+1 -> 3.237184276 | M4: =IF(L4>=1,L4,1) -> 3.237184276 | N4: =(0.0000018*LOG(C4)+0.00000157479)*D4/100*(10^(LOG(100)-1.7*LOG(C4))-1)+1 -> 2.740248938 | O4: =+LOG(N4/M4)/1.7 -> -0.04257494358 | P4: =+M4/10^(1.6*O4) -> 3.786930476 | Q4: =2.54*(C4-0.28)^0.028*D4^0.0504 -> 5.28874477 | R4: =+-LOG(N4)/(Q4-3.3) -> -0.2201338376 | S4: =+N4/10^(3.3*R4) -> 14.59592699 | T4: =10^(O4*K4+LOG(P4)) -> 2.868153909 | U4: =10^(R4*K4+LOG(S4)) -> 3.46920731 | V4: =IF(K4<=3.3,T4,U4) -> 2.868153909 | W4: =+IF(V4>=1,V4,1) -> 2.868153909 | X4: =+W4*(0.62*LOG(W4)*E4+1-0.62*LOG(W4)) -> 2.538591622 | Y4: =+X4*F4 -> 2.538591622 | Z4: =+Y4*H4 -> 2.538591622 | AA4: =+Z4*J4 -> 2.538591622 | AB4: =+IF(AA4>=1,AA4,1) -> 2.538591622 | AC4: =+(1-4.4511*C4^-0.5223)*A4/160+4.4511*C4^-0.5223 -> 2.382097397 | AD4: =(55.81466*LOG(D4)-287.7)/100*(AC4-1)+1 -> 1.861885706 | AE4: =+AD4*(0.2*E4+0.8) -> 1.711072964 | AF4: =+AE4*G4 -> 1.711072964 | AG4: =+AF4*I4 -> 1.711072964 | AH4: =+AG4*J4 -> 1.711072964 | AI4: =+IF(AH4>1,AH4,1) -> 1.711072964 | AJ4: =+AI4*AB4 -> 4.34371549
A13: =+MASTER!C24*MASTER!D24*MASTER!E24*MASTER!C25*MASTER!D25*MASTER!E25 -> 0
A14: FALSE
A15: FALSE

Sheet BCR_S_TBR_1 (hidden)
A1: BCR_S for TBR=1 | B1: Unreinforced | C1: Reinforced
A3: AC Thickness (mm) | B3: =+TBR_BCR_0!A4 -> 75 | C3: =+B3 -> 75
A4: AC Structural Layer Coefficient | B4: 0.4 | C4: =+B4 -> 0.4
A5: TBR for BCR=0 | B5: =+TBR_BCR_0!AB4 -> 2.538591622 | C5: =+B5 -> 2.538591622
A6: Base Thickness (mm) | B6: =+TBR_BCR_0!B4 -> 300 | C6: =+(B9-C3/25.4*C4)/(C7*C8)*25.4 -> 235.4420218
A7: Base Structural Layer Coefficient | B7: 0.14 | C7: 0.1783878667 | E7: Ratio of | F7: =10^((C7+0.977)/0.249)/10^((B7+0.977)/0.249) -> 1.426159631
A8: Base Layer Drainage Coefficient | B8: 1 | C8: =+B8 -> 1 | E8: base layer
A9: Structural Number | B9: =+B3/25.4*B4+B6/25.4*B7*B8 -> 2.834645669 | C9: =+C3/25.4*C4+C6/25.4*C7*C8 -> 2.834645669 | E9: resilient modulus
A10: Reliability | B10: 95 | C10: =+B10 -> 95
A11: Standard Normal Deviate (Zr) | B11: -1.645 | C11: -1.645
A12: Overall Standard Deviation (So) | B12: 0.35 | C12: 0.35
A13: Design Serviceability Loss (Delta psi) | B13: 1.9 | C13: 1.9
A14: Subgrade CBR | B14: =+MASTER!C12 -> 1.5 | C14: 1.5
A15: Subgrade Resilient Modulus (psi) | B15: =+B14*1500 -> 2250 | C15: 2250
A16: ESAL's | B16: =10^(+B11*B12+9.36*LOG(B9+1)-0.2+(LOG(B13/(4.2-1.5)))/(0.4+1094/((B9+1)^5.19))+2.32*LOG(B15)-8.07) -> 19393.96736 | C16: =10^(+C11*C12+9.36*LOG(C9+1)-0.2+(LOG(C13/(4.2-1.5)))/(0.4+1094/((C9+1)^5.19))+2.32*LOG(C15)-8.07) -> 19393.96736
A18: BCR | C18: =+(B6-C6)/B6*100 -> 21.51932605

Sheet BCR_B_TBR_1 (hidden)
A1: BCR_B for TBR=1 | B1: Unreinforced | C1: Reinforced
A3: AC Thickness (mm) | B3: =+TBR_BCR_0!A4 -> 75 | C3: =+B3 -> 75
A4: AC Structural Layer Coefficient | B4: 0.4 | C4: =+B4 -> 0.4
A5: TBR for BCR=0 | B5: =+TBR_BCR_0!AI4 -> 1.711072964 | C5: =+B5 -> 1.711072964
A6: Base Thickness (mm) | B6: =+TBR_BCR_0!B4 -> 300 | C6: =+(B9-C3/25.4*C4)/(C7*C8)*25.4 -> 260.0533316
A7: Base Structural Layer Coefficient | B7: 0.14 | C7: 0.1615053333 | E7: Ratio of | F7: =10^((C7+0.977)/0.249)/10^((B7+0.977)/0.249) -> 1.22001958
A8: Base Layer Drainage Coefficient | B8: 1 | C8: =+B8 -> 1 | E8: base layer
A9: Structural Number | B9: =+B3/25.4*B4+B6/25.4*B7*B8 -> 2.834645669 | C9: =+C3/25.4*C4+C6/25.4*C7*C8 -> 2.834645669 | E9: resilient modulus
A10: Reliability | B10: 95 | C10: =+B10 -> 95
A11: Standard Normal Deviate (Zr) | B11: -1.645 | C11: -1.645
A12: Overall Standard Deviation (So) | B12: 0.35 | C12: 0.35
A13: Design Serviceability Loss (Delta psi) | B13: 1.9 | C13: 1.9
A14: Subgrade CBR | B14: =+MASTER!C12 -> 1.5 | C14: 1.5
A15: Subgrade Resilient Modulus (psi) | B15: =+B14*1500 -> 2250 | C15: 2250
A16: ESAL's | B16: =10^(+B11*B12+9.36*LOG(B9+1)-0.2+(LOG(B13/(4.2-1.5)))/(0.4+1094/((B9+1)^5.19))+2.32*LOG(B15)-8.07) -> 19393.96736 | C16: =10^(+C11*C12+9.36*LOG(C9+1)-0.2+(LOG(C13/(4.2-1.5)))/(0.4+1094/((C9+1)^5.19))+2.32*LOG(C15)-8.07) -> 19393.96736
A18: BCR | C18: =+(B6-C6)/B6*100 -> 13.31555614

Sheet BCR_T_TBR_1 (hidden)
A1: BCR_T for TBR=1 | B1: Unreinforced | C1: Reinforced
A3: AC Thickness (mm) | B3: =+TBR_BCR_0!A4 -> 75 | C3: =+B3 -> 75
A4: AC Structural Layer Coefficient | B4: 0.4 | C4: =+B4 -> 0.4
A5: TBR for BCR=0 | B5: =+TBR_BCR_0!AJ4 -> 4.34371549 | C5: =+B5 -> 4.34371549
A6: Base Thickness (mm) | B6: =+TBR_BCR_0!B4 -> 300 | C6: =+(B9-C3/25.4*C4)/(C7*C8)*25.4 -> 207.0342346
A7: Base Structural Layer Coefficient | B7: 0.14 | C7: 0.202865 | E7: Ratio of | F7: =10^((C7+0.977)/0.249)/10^((B7+0.977)/0.249) -> 1.788421489
A8: Base Layer Drainage Coefficient | B8: 1 | C8: =+B8 -> 1 | E8: base layer
A9: Structural Number | B9: =+B3/25.4*B4+B6/25.4*B7*B8 -> 2.834645669 | C9: =+C3/25.4*C4+C6/25.4*C7*C8 -> 2.834645669 | E9: resilient modulus
A10: Reliability | B10: 95 | C10: =+B10 -> 95
A11: Standard Normal Deviate (Zr) | B11: -1.645 | C11: -1.645
A12: Overall Standard Deviation (So) | B12: 0.35 | C12: 0.35
A13: Design Serviceability Loss (Delta psi) | B13: 1.9 | C13: 1.9
A14: Subgrade CBR | B14: =+MASTER!C12 -> 1.5 | C14: 1.5
A15: Subgrade Resilient Modulus (psi) | B15: =+B14*1500 -> 2250 | C15: 2250
A16: ESAL's | B16: =10^(+B11*B12+9.36*LOG(B9+1)-0.2+(LOG(B13/(4.2-1.5)))/(0.4+1094/((B9+1)^5.19))+2.32*LOG(B15)-8.07) -> 19393.96736 | C16: =10^(+C11*C12+9.36*LOG(C9+1)-0.2+(LOG(C13/(4.2-1.5)))/(0.4+1094/((C9+1)^5.19))+2.32*LOG(C15)-8.07) -> 19393.96736
A18: BCR | C18: =+(B6-C6)/B6*100 -> 30.98858847

Sheet BCRTBR_S_BCR (hidden)
A1: BCR/TBR_S Comb. for known BCR | B1: Unreinforced | C1: Reinforced
A3: AC Thickness (mm) | B3: =+TBR_BCR_0!A4 -> 75 | C3: =+B3 -> 75
A4: AC Structural Layer Coefficient | B4: 0.4 | C4: =+B4 -> 0.4
A5: TBR for BCR=0 | B5: =+TBR_BCR_0!AB4 -> 2.538591622 | C5: =+B5 -> 2.538591622
A6: Desired BCR | C6: =+MASTER!C25 -> 0
A7: Base Thickness (mm) | B7: =+TBR_BCR_0!B4 -> 300 | C7: =+B7-C6/100*B7 -> 300
A8: Base Structural Layer Coefficient | B8: 0.14 | C8: 0.1783878667
A9: Base Layer Drainage Coefficient | B9: 1 | C9: =+B9 -> 1
A10: Structural Number | B10: =+B3/25.4*B4+B7/25.4*B8*B9 -> 2.834645669 | C10: =+C3/25.4*C4+C7/25.4*C8*C9 -> 3.288045669
A11: Reliability | B11: 95 | C11: =+B11 -> 95
A12: Standard Normal Deviate (Zr) | B12: -1.645 | C12: -1.645
A13: Overall Standard Deviation (So) | B13: 0.35 | C13: 0.35
A14: Design Serviceability Loss (Delta psi) | B14: 1.9 | C14: 1.9
A15: Subgrade CBR | B15: =+MASTER!C12 -> 1.5 | C15: 1.5
A16: Subgrade Resilient Modulus (psi) | B16: =+B15*1500 -> 2250 | C16: 2250
A17: ESAL's | B17: =10^(+B12*B13+9.36*LOG(B10+1)-0.2+(LOG(B14/(4.2-1.5)))/(0.4+1094/((B10+1)^5.19))+2.32*LOG(B16)-8.07) -> 19393.96736 | C17: =10^(+C12*C13+9.36*LOG(C10+1)-0.2+(LOG(C14/(4.2-1.5)))/(0.4+1094/((C10+1)^5.19))+2.32*LOG(C16)-8.07) -> 49237.56738
A19: TBR | C19: =+C17/B17 -> 2.538808407

Sheet BCRTBR_S_TBR (hidden)
A1: BCR/TBR_S Comb. for known TBR | B1: Unreinforced | C1: Reinforced
A3: AC Thickness (mm) | B3: =+TBR_BCR_0!A4 -> 75 | C3: =+B3 -> 75
A4: AC Structural Layer Coefficient | B4: 0.4 | C4: =+B4 -> 0.4
A5: TBR for BCR=0 | B5: =+TBR_BCR_0!AB4 -> 2.538591622 | C5: =+B5 -> 2.538591622
A6: Desired TBR | C6: =+MASTER!C24 -> 1
A7: Base Thickness (mm) | B7: =+TBR_BCR_0!B4 -> 300 | C7: =+(C10-C3/25.4*C4)/(C8*C9)*25.4 -> 235.4562605
A8: Base Structural Layer Coefficient | B8: 0.14 | C8: 0.1783878667
A9: Base Layer Drainage Coefficient | B9: 1 | C9: =+B9 -> 1
A10: Structural Number | B10: =+B3/25.4*B4+B7/25.4*B8*B9 -> 2.834645669 | C10: 2.834745669
A11: Reliability | B11: 95 | C11: =+B11 -> 95
A12: Standard Normal Deviate (Zr) | B12: -1.645 | C12: -1.645
A13: Overall Standard Deviation (So) | B13: 0.35 | C13: 0.35
A14: Design Serviceability Loss (Delta psi) | B14: 1.9 | C14: 1.9
A15: Subgrade CBR | B15: =MASTER!C12 -> 1.5 | C15: 1.5
A16: Subgrade Resilient Modulus (psi) | B16: =+B15*1500 -> 2250 | C16: 2250
A17: ESAL's | B17: =10^(+B12*B13+9.36*LOG(B10+1)-0.2+(LOG(B14/(4.2-1.5)))/(0.4+1094/((B10+1)^5.19))+2.32*LOG(B16)-8.07) -> 19393.96736 | C17: =+B17*C6 -> 19393.96736
A19: BCR | C19: =+(B7-C7)/B7*100 -> 21.51457984

Sheet BCRTBR_B_BCR (hidden)
A1: BCR/TBR_B Comb. for known BCR | B1: Unreinforced | C1: Reinforced
A3: AC Thickness (mm) | B3: =+TBR_BCR_0!A4 -> 75 | C3: =+B3 -> 75
A4: AC Structural Layer Coefficient | B4: 0.4 | C4: =+B4 -> 0.4
A5: TBR for BCR=0 | B5: =+TBR_BCR_0!AI4 -> 1.711072964 | C5: =+B5 -> 1.711072964
A6: Desired BCR | C6: =+MASTER!D25 -> 0
A7: Base Thickness (mm) | B7: =+TBR_BCR_0!B4 -> 300 | C7: =+B7-C6/100*B7 -> 300
A8: Base Structural Layer Coefficient | B8: 0.14 | C8: 0.1615053333
A9: Base Layer Drainage Coefficient | B9: 1 | C9: =+B9 -> 1
A10: Structural Number | B10: =+B3/25.4*B4+B7/25.4*B8*B9 -> 2.834645669 | C10: =+C3/25.4*C4+C7/25.4*C8*C9 -> 3.088645669
A11: Reliability | B11: 95 | C11: =+B11 -> 95
A12: Standard Normal Deviate (Zr) | B12: -1.645 | C12: -1.645
A13: Overall Standard Deviation (So) | B13: 0.35 | C13: 0.35
A14: Design Serviceability Loss (Delta psi) | B14: 1.9 | C14: 1.9
A15: Subgrade CBR | B15: =+MASTER!C12 -> 1.5 | C15: 1.5
A16: Subgrade Resilient Modulus (psi) | B16: =+B15*1500 -> 2250 | C16: 2250
A17: ESAL's | B17: =10^(+B12*B13+9.36*LOG(B10+1)-0.2+(LOG(B14/(4.2-1.5)))/(0.4+1094/((B10+1)^5.19))+2.32*LOG(B16)-8.07) -> 19393.96736 | C17: =10^(+C12*C13+9.36*LOG(C10+1)-0.2+(LOG(C14/(4.2-1.5)))/(0.4+1094/((C10+1)^5.19))+2.32*LOG(C16)-8.07) -> 33186.75123
A19: TBR | C19: =+C17/B17 -> 1.711189393

Sheet BCRTBR_B_TBR (hidden)
A1: BCR/TBR_B Comb. for known TBR | B1: Unreinforced | C1: Reinforced
A3: AC Thickness (mm) | B3: =+TBR_BCR_0!A4 -> 75 | C3: =+B3 -> 75
A4: AC Structural Layer Coefficient | B4: 0.4 | C4: =+B4 -> 0.4
A5: TBR for BCR=0 | B5: =+TBR_BCR_0!AI4 -> 1.711072964 | C5: =+B5 -> 1.711072964
A6: Desired TBR | C6: =+MASTER!D24 -> 1
A7: Base Thickness (mm) | B7: =+TBR_BCR_0!B4 -> 300 | C7: =+(C10-C3/25.4*C4)/(C8*C9)*25.4 -> 260.0690586
A8: Base Structural Layer Coefficient | B8: 0.14 | C8: 0.1615053333
A9: Base Layer Drainage Coefficient | B9: 1 | C9: =+B9 -> 1
A10: Structural Number | B10: =+B3/25.4*B4+B7/25.4*B8*B9 -> 2.834645669 | C10: 2.834745669
A11: Reliability | B11: 95 | C11: =+B11 -> 95
A12: Standard Normal Deviate (Zr) | B12: -1.645 | C12: -1.645
A13: Overall Standard Deviation (So) | B13: 0.35 | C13: 0.35
A14: Design Serviceability Loss (Delta psi) | B14: 1.9 | C14: 1.9
A15: Subgrade CBR | B15: =+MASTER!C12 -> 1.5 | C15: 1.5
A16: Subgrade Resilient Modulus (psi) | B16: =+B15*1500 -> 2250 | C16: 2250
A17: ESAL's | B17: =10^(+B12*B13+9.36*LOG(B10+1)-0.2+(LOG(B14/(4.2-1.5)))/(0.4+1094/((B10+1)^5.19))+2.32*LOG(B16)-8.07) -> 19393.96736 | C17: =+B17*C6 -> 19393.96736
A19: BCR | C19: =+(B7-C7)/B7*100 -> 13.3103138

Sheet BCRTBR_T_BCR (hidden)
A1: BCR/TBR_T Comb. for known BCR | B1: Unreinforced | C1: Reinforced
A3: AC Thickness (mm) | B3: =+TBR_BCR_0!A4 -> 75 | C3: =+B3 -> 75
A4: AC Structural Layer Coefficient | B4: 0.4 | C4: =+B4 -> 0.4
A5: TBR for BCR=0 | B5: =+TBR_BCR_0!AJ4 -> 4.34371549 | C5: =+B5 -> 4.34371549
A6: Desired BCR | C6: =+MASTER!E25 -> 23
A7: Base Thickness (mm) | B7: =+TBR_BCR_0!B4 -> 300 | C7: =+B7-C6/100*B7 -> 231
A8: Base Structural Layer Coefficient | B8: 0.14 | C8: 0.202865
A9: Base Layer Drainage Coefficient | B9: 1 | C9: =+B9 -> 1
A10: Structural Number | B10: =+B3/25.4*B4+B7/25.4*B8*B9 -> 2.834645669 | C10: =+C3/25.4*C4+C7/25.4*C8*C9 -> 3.026055709
A11: Reliability | B11: 95 | C11: =+B11 -> 95
A12: Standard Normal Deviate (Zr) | B12: -1.645 | C12: -1.645
A13: Overall Standard Deviation (So) | B13: 0.35 | C13: 0.35
A14: Design Serviceability Loss (Delta psi) | B14: 1.9 | C14: 1.9
A15: Subgrade CBR | B15: =+MASTER!C12 -> 1.5 | C15: 1.5
A16: Subgrade Resilient Modulus (psi) | B16: =+B15*1500 -> 2250 | C16: 2250
A17: ESAL's | B17: =10^(+B12*B13+9.36*LOG(B10+1)-0.2+(LOG(B14/(4.2-1.5)))/(0.4+1094/((B10+1)^5.19))+2.32*LOG(B16)-8.07) -> 19393.96736 | C17: =10^(+C12*C13+9.36*LOG(C10+1)-0.2+(LOG(C14/(4.2-1.5)))/(0.4+1094/((C10+1)^5.19))+2.32*LOG(C16)-8.07) -> 29184.25967
A19: TBR | C19: =+C17/B17 -> 1.504811219

Sheet BCRTBR_T_TBR (hidden)
A1: BCR/TBR_T Comb. for known TBR | B1: Unreinforced | C1: Reinforced
A3: AC Thickness (mm) | B3: =+TBR_BCR_0!A4 -> 75 | C3: =+B3 -> 75
A4: AC Structural Layer Coefficient | B4: 0.4 | C4: =+B4 -> 0.4
A5: TBR for BCR=0 | B5: =+TBR_BCR_0!AJ4 -> 4.34371549 | C5: =+B5 -> 4.34371549
A6: Desired TBR | C6: =+MASTER!E24 -> 2
A7: Base Thickness (mm) | B7: =+TBR_BCR_0!B4 -> 300 | C7: =+(C10-C3/25.4*C4)/(C8*C9)*25.4 -> 248.5526828
A8: Base Structural Layer Coefficient | B8: 0.14 | C8: 0.202865
A9: Base Layer Drainage Coefficient | B9: 1 | C9: =+B9 -> 1
A10: Structural Number | B10: =+B3/25.4*B4+B7/25.4*B8*B9 -> 2.834645669 | C10: 3.166245669
A11: Reliability | B11: 95 | C11: =+B11 -> 95
A12: Standard Normal Deviate (Zr) | B12: -1.645 | C12: -1.645
A13: Overall Standard Deviation (So) | B13: 0.35 | C13: 0.35
A14: Design Serviceability Loss (Delta psi) | B14: 1.9 | C14: 1.9
A15: Subgrade CBR | B15: =+MASTER!C12 -> 1.5 | C15: 1.5
A16: Subgrade Resilient Modulus (psi) | B16: =+B15*1500 -> 2250 | C16: 2250
A17: ESAL's | B17: =10^(+B12*B13+9.36*LOG(B10+1)-0.2+(LOG(B14/(4.2-1.5)))/(0.4+1094/((B10+1)^5.19))+2.32*LOG(B16)-8.07) -> 19393.96736 | C17: =+B17*C6 -> 38787.93472
A19: BCR | C19: =+(B7-C7)/B7*100 -> 17.14910573
